[Event "BIH-chT Premier League 2019"]
[Site "Tuzla"]
[Date "2019.06.14"]
[Round "7.1"]
[White "Sedlak, Nikola"]
[Black "Stevic, Hrvoje"]
[Result "1/2-1/2"]
[ECO "C60"]
[WhiteElo "2583"]
[BlackElo "2575"]
[Annotator "ChessBase"]
[PlyCount "62"]
[EventDate "2019.06.08"]
[EventType "team-tourn"]
[EventCountry "BIH"]
[SourceTitle "playchess.com"]
[Source "ChessBase"]
[SourceQuality "1"]
[TimeControl "40/5400+30:900+30"]

1. e4 {[%emt 0:00:00]} e5 {[%emt 0:00:00]} 2. Nf3 {[%emt 0:00:00]} Nc6 {[%emt 0:00:00]} 3. Bb5 {[%emt 0:00:18]} g6 {[%emt 0:01:33]} 4. d4 {[%emt 0:03:33]} exd4 {[%emt 0:00:30]} 5. Bg5 {[%emt 0:00:46]} Be7 {[%emt 0:00:14]} 6. Bxe7 {[%emt 0:00:28]} Qxe7 {[%emt 0:03:51]} 7. Bxc6 {[%emt 0:01:15]} dxc6 {[%emt 0:00:41]} 8. Qxd4 {[%emt 0:00:17]} Nf6 {[%emt 0:00:10]} 9. Nc3 {[%emt 0:00:26]} Bg4 {[%emt 0:00:49]} 10. Nd2 {[%emt 0:04:03]} c5 {[%emt 0:03:38]} 11. Qe3 {[%emt 0:00:55]} O-O-O {[%emt 0:01:06]} 12. h3 {[%emt 0:05:55]} Bd7 {[%emt 0:04:32]} 13. O-O-O {[%emt 0:03:37]} Bc6 {[%emt 0:01:35]} 14. f3 {[%emt 0:01:26]} b6 {[%emt 0:02:24]} 15. Nc4 {[%emt 1:14:31]} Qe6 {[%emt 0:06:46]} 16. b3 {[%emt 0:00:00]} h5 {[%emt 0:15:37]} 17. Qg5 {[%emt 0:00:00]} Nh7 {[%emt 0:08:10]} 18. Qe5 {[%emt 0:00:00]} Rde8 {[%emt 0:03:26]} 19. Qxe6+ {[%emt 0:00:00]} Rxe6 {[%emt 0:00:08]} 20. h4 {[%emt 0:00:00]} Nf6 {[%emt 0:02:03]} 21. Ne3 {[%emt 0:00:00]} Rd6 {[%emt 0:03:22]} 22. Rxd6 {[%emt 0:00:00]} cxd6 {[%emt 0:00:29]} 23. Rd1 {[%emt 0:00:00]} Kc7 {[%emt 0:01:21]} 24. Ncd5+ {[%emt 0:00:00]} Nxd5 {[%emt 0:01:14]} 25. Nxd5+ {[%emt 0:00:00]} Bxd5 {[%emt 0:00:04]} 26. Rxd5 {[%emt 0:00:00]} Re8 {[%emt 0:00:37]} 27. c4 {[%emt 0:00:00]} Re5 {[%emt 0:00:11]} 28. Kd2 {[%emt 0:00:00]} Kd7 {[%emt 0:04:05]} 29. Ke3 {[%emt 0:00:00]} Ke7 {[%emt 0:00:34]} 30. Kf4 {[%emt 0:00:00]} f6 {[%emt 0:01:10]} 31. g4 {[%emt 0:00:00]} hxg4 {[%emt 0:09:31]} 1/2-1/2

[Event "BIH-chT Premier League 2019"]
[Site "Tuzla"]
[Date "2019.06.14"]
[Round "7.1"]
[White "Radovanovic, Nikola"]
[Black "Predojevic, Borki"]
[Result "0-1"]
[ECO "E20"]
[WhiteElo "2427"]
[BlackElo "2620"]
[Annotator "ChessBase"]
[PlyCount "104"]
[EventDate "2019.06.08"]
[EventType "team-tourn"]
[EventCountry "BIH"]
[SourceTitle "playchess.com"]
[Source "ChessBase"]
[SourceQuality "1"]
[TimeControl "40/5400+30:900+30"]

1. d4 {[%emt 0:00:33]} Nf6 {[%emt 0:00:00]} 2. c4 {[%emt 0:00:19]} e6 {[%emt 0:00:00]} 3. Nc3 {[%emt 0:00:35]} Bb4 {[%emt 0:00:00]} 4. g3 {[%emt 0:01:11]} c5 {[%emt 0:01:25]} 5. Nf3 {[%emt 0:00:18]} Nc6 {[%emt 0:00:47]} 6. Bg2 {[%emt 0:01:49]} Ne4 {[%emt 0:00:43]} 7. Bd2 {[%emt 0:01:25]} Nxd2 {[%emt 0:00:41]} 8. Qxd2 {[%emt 0:00:07]} cxd4 {[%emt 0:00:07]} 9. Nxd4 {[%emt 0:00:10]} O-O {[%emt 0:00:06]} 10. O-O {[%emt 0:03:51]} Ne5 {[%emt 0:00:31]} 11. b3 {[%emt 0:05:24]} a6 {[%emt 0:00:36]} 12. a3 {[%emt 0:06:08]} Be7 {[%emt 0:00:59]} 13. e3 {[%emt 0:07:28]} Qc7 {[%emt 0:11:13]} 14. Rfc1 {[%emt 0:14:55]} d6 {[%emt 0:11:14]} 15. Rc2 {[%emt 0:10:28]} Bd7 {[%emt 0:05:00]} 16. f4 {[%emt 0:05:12]} Ng4 {[%emt 0:02:58]} 17. h3 {[%emt 0:03:56]} Nf6 {[%emt 0:00:17]} 18. Rd1 {[%emt 0:00:39]} Rac8 {[%emt 0:16:40]} 19. Kh2 {[%emt 0:12:18]} g6 {[%emt 0:05:09]} 20. Ne4 {[%emt 0:03:58]} Rfd8 {[%emt 0:02:21]} 21. Nf2 {[%emt 0:01:34]} e5 {[%emt 0:12:17]} 22. Ne2 {[%emt 0:01:38]} d5 {[%emt 0:00:44]} 23. c5 {[%emt 0:01:40]} Bb5 {[%emt 0:13:07]} 24. Nc1 {[%emt 0:05:51]} exf4 {[%emt 0:03:11]} 25. exf4 {[%emt 0:03:30]} Ne4 {[%emt 0:00:51]} 26. Nxe4 {[%emt 0:03:33]} dxe4 {[%emt 0:00:05]} 27. Qe1 {[%emt 0:00:05]} Rxd1 {[%emt 0:02:54]} 28. Qxd1 {[%emt 0:00:04]} Rd8 {[%emt 0:00:20]} 29. Qe1 {[%emt 0:02:03]} f5 {[%emt 0:00:07]} 30. b4 {[%emt 0:02:17]} Ba4 {[%emt 0:04:46]} 31. Rd2 {[%emt 0:00:20]} Bf6 {[%emt 0:00:14]} 32. Ne2 {[%emt 0:01:14]} Kg7 {[%emt 0:00:35]} 33. Rxd8 {[%emt 0:01:11]} Qxd8 {[%emt 0:00:07]} 34. g4 {[%emt 0:00:10]} Bh4 {[%emt 0:04:38]} 35. Qa1+ {[%emt 0:00:58]} Qf6 {[%emt 0:00:16]} 36. Qc1 {[%emt 0:00:24]} Bb5 {[%emt 0:00:33]} 37. Nc3 {[%emt 0:00:38]} Bc6 {[%emt 0:00:48]} 38. gxf5 {[%emt 0:00:18]} gxf5 {[%emt 0:00:05]} 39. Qe3 {[%emt 0:00:46]} Qd8 {[%emt 0:00:00]} 40. a4 {[%emt 0:00:00]} Bf6 {[%emt 0:00:00]} 41. b5 {[%emt 0:04:33]} axb5 {[%emt 0:02:59]} 42. axb5 {[%emt 0:00:05]} Be8 {[%emt 0:00:11]} 43. Nxe4 {[%emt 0:05:41]} fxe4 {[%emt 0:03:38]} 44. Qxe4 {[%emt 0:00:05]} Bf7 {[%emt 0:03:38]} 45. Qxb7 {[%emt 0:01:00]} Qd4 {[%emt 0:00:47]} 46. Qc7 {[%emt 0:04:22]} Qf2 {[%emt 0:00:09]} 47. b6 {[%emt 0:00:42]} Bd4 {[%emt 0:01:19]} 48. h4 {[%emt 0:02:09]} Qxh4+ {[%emt 0:03:22]} 49. Bh3 {[%emt 0:00:04]} Qe1 {[%emt 0:01:03]} 50. Bg2 {[%emt 0:01:49]} Bg1+ {[%emt 0:00:18]} 51. Kh3 {[%emt 0:00:08]} Qe3+ {[%emt 0:00:27]} 52. Kg4 {[%emt 0:00:17]} h5+ {[%emt 0:00:16]} 0-1

[Event "BIH-chT Premier League 2019"]
[Site "Tuzla"]
[Date "2019.06.14"]
[Round "7.2"]
[White "Kosic, Dragan"]
[Black "Djukic, Nikola"]
[Result "1/2-1/2"]
[ECO "D14"]
[WhiteElo "2479"]
[BlackElo "2547"]
[Annotator "ChessBase"]
[PlyCount "23"]
[EventDate "2019.06.08"]
[EventType "team-tourn"]
[EventCountry "BIH"]
[SourceTitle "playchess.com"]
[Source "ChessBase"]
[SourceQuality "1"]
[TimeControl "40/5400+30:900+30"]

1. d4 {[%emt 0:00:00]} d5 {[%emt 0:00:00]} 2. c4 {[%emt 0:00:00]} c6 {[%emt 0:00:00]} 3. Nc3 {[%emt 0:00:00]} Nf6 {[%emt 0:00:00]} 4. cxd5 {[%emt 0:00:00]} cxd5 {[%emt 0:00:00]} 5. Bf4 {[%emt 0:00:00]} Nc6 {[%emt 0:00:00]} 6. Nf3 {[%emt 0:00:06]} Bf5 {[%emt 0:00:06]} 7. e3 {[%emt 0:00:22]} e6 {[%emt 0:00:07]} 8. Bd3 {[%emt 0:00:04]} Bxd3 {[%emt 0:00:05]} 9. Qxd3 {[%emt 0:00:03]} Bd6 {[%emt 0:00:05]} 10. Bxd6 {[%emt 0:00:05]} Qxd6 {[%emt 0:00:06]} 11. O-O {[%emt 0:00:04]} O-O {[%emt 0:00:04]} 12. Rfc1 {[%emt 0:00:05]} 1/2-1/2

[Event "BIH-chT Premier League 2019"]
[Site "Tuzla"]
[Date "2019.06.14"]
[Round "7.3"]
[White "Kadric, Denis"]
[Black "Dizdarevic, Emir"]
[Result "1-0"]
[ECO "C02"]
[WhiteElo "2550"]
[BlackElo "2433"]
[Annotator "ChessBase"]
[PlyCount "71"]
[EventDate "2019.06.08"]
[EventType "team-tourn"]
[EventCountry "BIH"]
[SourceTitle "playchess.com"]
[Source "ChessBase"]
[SourceQuality "1"]
[TimeControl "40/5400+30:900+30"]

1. e4 {[%emt 0:00:00]} e6 {[%emt 0:00:00]} 2. d4 {[%emt 0:00:00]} d5 {[%emt 0:00:00]} 3. e5 {[%emt 0:00:00]} c5 {[%emt 0:00:29]} 4. c3 {[%emt 0:00:00]} Nc6 {[%emt 0:00:52]} 5. Nf3 {[%emt 0:00:00]} Qb6 {[%emt 0:01:41]} 6. Be2 {[%emt 0:00:04]} Nh6 {[%emt 0:06:28]} 7. Bxh6 {[%emt 0:00:07]} gxh6 {[%emt 0:00:15]} 8. Qd2 {[%emt 0:00:03]} Bd7 {[%emt 0:02:36]} 9. O-O {[%emt 0:00:14]} a6 {[%emt 0:06:19]} 10. Na3 {[%emt 0:11:25]} cxd4 {[%emt 0:00:31]} 11. cxd4 {[%emt 0:00:02]} Qb4 {[%emt 0:00:27]} 12. Qd3 {[%emt 0:02:30]} Qxb2 {[%emt 1:16:22]} 13. Nc2 {[%emt 0:01:01]} Qb5 {[%emt 0:00:00]} 14. Qd2 {[%emt 0:04:16]} Qa5 {[%emt 0:00:00]} 15. Qf4 {[%emt 0:00:01]} Ne7 {[%emt 0:00:00]} 16. h4 {[%emt 0:07:13]} Qc7 {[%emt 0:00:00]} 17. Ne3 {[%emt 0:10:04]} f5 {[%emt 0:00:00]} 18. Rfc1 {[%emt 0:00:02]} Qd8 {[%emt 0:00:00]} 19. g4 {[%emt 0:03:09]} Ng6 {[%emt 0:00:00]} 20. Qh2 {[%emt 0:00:04]} fxg4 {[%emt 0:00:00]} 21. Nxg4 {[%emt 0:00:02]} Be7 {[%emt 0:00:00]} 22. Nxh6 {[%emt 0:10:34]} Rf8 {[%emt 0:00:00]} 23. Qg3 {[%emt 0:04:00]} Bb5 {[%emt 0:00:00]} 24. Bxb5+ {[%emt 0:06:35]} axb5 {[%emt 0:00:00]} 25. Ng5 {[%emt 0:00:02]} Nf4 {[%emt 0:00:00]} 26. Kh1 {[%emt 0:10:01]} Ra3 {[%emt 0:00:00]} 27. f3 {[%emt 0:00:52]} Bxg5 {[%emt 0:00:00]} 28. hxg5 {[%emt 0:00:07]} Ne2 {[%emt 0:00:00]} 29. Qg4 {[%emt 0:01:15]} Qd7 {[%emt 0:01:16]} 30. Rc2 {[%emt 0:01:16]} Nc3 {[%emt 0:01:34]} 31. Qh5+ {[%emt 0:02:33]} Kd8 {[%emt 0:00:07]} 32. Ng4 {[%emt 0:00:08]} Rxf3 {[%emt 0:02:42]} 33. Nf6 {[%emt 0:00:42]} Ne4 {[%emt 0:00:45]} 34. Qxf3 {[%emt 0:00:22]} Rxf3 {[%emt 0:00:23]} 35. Nxd7 {[%emt 0:00:02]} Kxd7 {[%emt 0:00:21]} 36. Rac1 {[%emt 0:01:11]} 1-0

[Event "BIH-chT Premier League 2019"]
[Site "Tuzla"]
[Date "2019.06.14"]
[Round "7.3"]
[White "Tadic, Branko"]
[Black "Kozul, Zdenko"]
[Result "1-0"]
[ECO "D79"]
[WhiteElo "2483"]
[BlackElo "2575"]
[Annotator "ChessBase"]
[PlyCount "91"]
[EventDate "2019.06.08"]
[EventType "team-tourn"]
[EventCountry "BIH"]
[SourceTitle "playchess.com"]
[Source "ChessBase"]
[SourceQuality "1"]
[TimeControl "40/5400+30:900+30"]

1. Nf3 {[%emt 0:04:03]} Nf6 {[%emt 0:00:00]} 2. c4 {[%emt 0:00:50]} g6 {[%emt 0:00:03]} 3. g3 {[%emt 0:00:14]} c6 {[%emt 0:00:41]} 4. Bg2 {[%emt 0:00:30]} Bg7 {[%emt 0:00:14]} 5. O-O {[%emt 0:00:38]} O-O {[%emt 0:00:09]} 6. d4 {[%emt 0:01:11]} d5 {[%emt 0:00:16]} 7. cxd5 {[%emt 0:00:36]} cxd5 {[%emt 0:00:08]} 8. Ne5 {[%emt 0:01:29]} e6 {[%emt 0:03:10]} 9. Nc3 {[%emt 0:00:21]} Nc6 {[%emt 0:03:36]} 10. Nxc6 {[%emt 0:00:45]} bxc6 {[%emt 0:00:07]} 11. Bf4 {[%emt 0:00:42]} Nd7 {[%emt 0:04:53]} 12. Qd2 {[%emt 0:11:09]} Re8 {[%emt 0:04:55]} 13. Rac1 {[%emt 0:04:46]} a5 {[%emt 0:17:19]} 14. e4 {[%emt 0:17:29]} Ba6 {[%emt 0:08:06]} 15. Rfd1 {[%emt 0:05:34]} Nb6 {[%emt 0:01:06]} 16. b3 {[%emt 0:01:45]} a4 {[%emt 0:06:56]} 17. h4 {[%emt 0:06:28]} axb3 {[%emt 0:01:17]} 18. axb3 {[%emt 0:00:04]} Qe7 {[%emt 0:07:46]} 19. h5 {[%emt 0:10:08]} Qb4 {[%emt 0:06:01]} 20. h6 {[%emt 0:09:49]} Bf8 {[%emt 0:02:48]} 21. Bc7 {[%emt 0:13:04]} Nd7 {[%emt 0:09:23]} 22. Qf4 {[%emt 0:00:27]} Bb7 {[%emt 0:09:59]} 23. exd5 {[%emt 0:03:36]} cxd5 {[%emt 0:01:47]} 24. Bf1 {[%emt 0:01:49]} Ba6 {[%emt 0:04:11]} 25. Bh3 {[%emt 0:00:04]} Qxb3 {[%emt 0:05:22]} 26. Bd6 {[%emt 0:00:49]} Bxd6 {[%emt 0:00:12]} 27. Qxd6 {[%emt 0:00:05]} Bc8 {[%emt 0:00:05]} 28. Re1 {[%emt 0:03:04]} Qb6 {[%emt 0:01:35]} 29. Qxb6 {[%emt 0:01:52]} Nxb6 {[%emt 0:00:06]} 30. Rb1 {[%emt 0:00:02]} Nd7 {[%emt 0:01:55]} 31. Nxd5 {[%emt 0:00:15]} Ra4 {[%emt 0:00:44]} 32. Nc7 {[%emt 0:01:14]} Rd8 {[%emt 0:00:29]} 33. d5 {[%emt 0:00:17]} e5 {[%emt 0:00:27]} 34. Rec1 {[%emt 0:01:11]} Kf8 {[%emt 0:00:29]} 35. Nb5 {[%emt 0:00:39]} Ba6 {[%emt 0:00:30]} 36. Nc3 {[%emt 0:00:24]} Rd4 {[%emt 0:00:25]} 37. Bxd7 {[%emt 0:00:31]} Rxd7 {[%emt 0:00:05]} 38. Rb8+ {[%emt 0:00:00]} Ke7 {[%emt 0:00:08]} 39. Rh8 {[%emt 0:00:08]} Rc4 {[%emt 0:01:15]} 40. Rxh7 {[%emt 0:00:00]} Rdc7 {[%emt 0:00:00]} 41. Ra1 {[%emt 0:04:37]} Rxc3 {[%emt 0:06:56]} 42. Rxa6 {[%emt 0:00:09]} Rc1+ {[%emt 0:00:08]} 43. Kg2 {[%emt 0:00:09]} Rd1 {[%emt 0:00:06]} 44. Rxg6 {[%emt 0:02:53]} Rxd5 {[%emt 0:00:54]} 45. Rxf7+ {[%emt 0:00:36]} Kxf7 {[%emt 0:00:07]} 46. Rg7+ {[%emt 0:00:02]} 1-0

[Event "BIH-chT Premier League 2019"]
[Site "Tuzla"]
[Date "2019.06.14"]
[Round "7.4"]
[White "Nikolic, Predrag"]
[Black "Pasalic, Harun"]
[Result "1-0"]
[ECO "E60"]
[WhiteElo "2574"]
[BlackElo "2304"]
[Annotator "ChessBase"]
[PlyCount "63"]
[EventDate "2019.06.08"]
[EventType "team-tourn"]
[EventCountry "BIH"]
[SourceTitle "playchess.com"]
[Source "ChessBase"]
[SourceQuality "1"]
[TimeControl "40/5400+30:900+30"]

1. d4 {[%emt 0:00:00]} Nf6 {[%emt 0:00:00]} 2. Nf3 {[%emt 0:00:30]} g6 {[%emt 0:00:30]} 3. g3 {[%emt 0:00:30]} Bg7 {[%emt 0:00:30]} 4. Bg2 {[%emt 0:00:30]} O-O {[%emt 0:00:30]} 5. c4 {[%emt 0:00:30]} d6 {[%emt 0:00:30]} 6. O-O {[%emt 0:00:30]} Nc6 {[%emt 0:00:00]} 7. d5 {[%emt 0:00:00]} Na5 {[%emt 0:00:00]} 8. Nfd2 {[%emt 0:00:00]} c5 {[%emt 0:00:00]} 9. a3 {[%emt 0:00:00]} Nd7 {[%emt 0:06:40]} 10. Ra2 {[%emt 0:00:00]} b5 {[%emt 0:00:38]} 11. cxb5 {[%emt 0:00:28]} c4 {[%emt 0:00:15]} 12. a4 {[%emt 0:01:50]} a6 {[%emt 0:05:32]} 13. Na3 {[%emt 0:00:53]} Nc5 {[%emt 0:04:53]} 14. Ne4 {[%emt 0:09:06]} Nxe4 {[%emt 0:41:27]} 15. Bxe4 {[%emt 0:00:46]} Nb3 {[%emt 0:00:29]} 16. Be3 {[%emt 0:01:09]} axb5 {[%emt 0:02:27]} 17. axb5 {[%emt 0:05:40]} Bh3 {[%emt 0:01:12]} 18. Bg2 {[%emt 0:06:38]} Bf5 {[%emt 0:03:48]} 19. b6 {[%emt 0:10:08]} Qd7 {[%emt 0:02:29]} 20. Nxc4 {[%emt 1:00:52]} Rxa2 {[%emt 0:01:30]} 21. Qxb3 {[%emt 0:00:00]} Qa4 {[%emt 0:02:49]} 22. Qxa4 {[%emt 0:00:00]} Rxa4 {[%emt 0:00:05]} 23. b3 {[%emt 0:00:00]} Rb4 {[%emt 0:00:42]} 24. Na5 {[%emt 0:00:00]} Re8 {[%emt 0:10:58]} 25. b7 {[%emt 0:00:00]} Rb5 {[%emt 0:03:40]} 26. Bd2 {[%emt 0:00:00]} Rb8 {[%emt 0:08:06]} 27. e4 {[%emt 0:00:00]} Bd7 {[%emt 0:01:10]} 28. Rc1 {[%emt 0:00:00]} Kf8 {[%emt 0:00:53]} 29. Rc7 {[%emt 0:00:00]} Ke8 {[%emt 0:00:24]} 30. Bf1 {[%emt 0:00:00]} Rc5 {[%emt 0:02:11]} 31. Rxc5 {[%emt 0:00:00]} dxc5 {[%emt 0:00:01]} 32. Bf4 {[%emt 0:00:00]} 1-0

[Event "BIH-chT Premier League 2019"]
[Site "Tuzla"]
[Date "2019.06.14"]
[Round "7.4"]
[White "Burovic, Rijad"]
[Black "Stojanovic, Dalibor"]
[Result "1/2-1/2"]
[ECO "B77"]
[WhiteElo "2399"]
[BlackElo "2507"]
[Annotator "ChessBase"]
[PlyCount "78"]
[EventDate "2019.06.08"]
[EventType "team-tourn"]
[EventCountry "BIH"]
[SourceTitle "playchess.com"]
[Source "ChessBase"]
[SourceQuality "1"]
[TimeControl "40/5400+30:900+30"]

1. e4 {[%emt 0:01:21]} c5 {[%emt 0:00:00]} 2. Nc3 {[%emt 0:01:06]} Nc6 {[%emt 0:01:23]} 3. Nge2 {[%emt 0:00:48]} d6 {[%emt 0:01:01]} 4. d4 {[%emt 0:00:28]} cxd4 {[%emt 0:00:05]} 5. Nxd4 {[%emt 0:00:06]} Nf6 {[%emt 0:00:14]} 6. Bc4 {[%emt 0:00:20]} Bd7 {[%emt 0:01:38]} 7. Bb3 {[%emt 0:01:59]} g6 {[%emt 0:02:11]} 8. Be3 {[%emt 0:00:39]} Bg7 {[%emt 0:04:45]} 9. f3 {[%emt 0:00:14]} O-O {[%emt 0:00:23]} 10. Qd2 {[%emt 0:00:14]} Nxd4 {[%emt 0:00:04]} 11. Bxd4 {[%emt 0:00:08]} b5 {[%emt 0:00:03]} 12. a4 {[%emt 0:00:06]} b4 {[%emt 0:12:59]} 13. Nd5 {[%emt 0:00:30]} Nxd5 {[%emt 0:02:36]} 14. Bxg7 {[%emt 0:01:19]} Kxg7 {[%emt 0:00:04]} 15. exd5 {[%emt 0:01:03]} Qa5 {[%emt 0:01:58]} 16. h4 {[%emt 0:09:51]} e5 {[%emt 0:06:32]} 17. h5 {[%emt 0:10:57]} Rh8 {[%emt 0:03:51]} 18. h6+ {[%emt 0:00:55]} Kf8 {[%emt 0:00:21]} 19. O-O {[%emt 0:01:42]} f5 {[%emt 0:05:26]} 20. f4 {[%emt 0:02:47]} Qc5+ {[%emt 0:08:05]} 21. Kh2 {[%emt 0:01:26]} e4 {[%emt 0:00:05]} 22. Rac1 {[%emt 0:19:35]} Kf7 {[%emt 0:01:26]} 23. Rfe1 {[%emt 0:09:50]} Rab8 {[%emt 0:05:26]} 24. Re3 {[%emt 0:03:01]} Qb6 {[%emt 0:05:34]} 25. Rce1 {[%emt 0:01:57]} Rhe8 {[%emt 0:04:52]} 26. c4 {[%emt 0:19:55]} Rbc8 {[%emt 0:05:29]} 27. Rc1 {[%emt 0:02:06]} Qc5 {[%emt 0:02:51]} 28. Bd1 {[%emt 0:02:51]} Ke7 {[%emt 0:01:30]} 29. b3 {[%emt 0:01:11]} Kd8 {[%emt 0:02:38]} 30. Bc2 {[%emt 0:00:41]} Kc7 {[%emt 0:00:28]} 31. Rce1 {[%emt 0:00:52]} Rg8 {[%emt 0:02:11]} 32. Rg3 {[%emt 0:00:28]} Kb6 {[%emt 0:03:44]} 33. Rg5 {[%emt 0:00:55]} Rge8 {[%emt 0:00:50]} 34. Re3 {[%emt 0:01:07]} a5 {[%emt 0:01:07]} 35. Bd1 {[%emt 0:01:13]} Rg8 {[%emt 0:00:42]} 36. Be2 {[%emt 0:00:27]} Ka7 {[%emt 0:00:45]} 37. Bd1 {[%emt 0:00:15]} Kb6 {[%emt 0:01:16]} 38. Be2 {[%emt 0:00:12]} Ka7 {[%emt 0:00:11]} 39. Bd1 {[%emt 0:00:05]} Kb6 {[%emt 0:01:10]} 1/2-1/2

[Event "BIH-chT Premier League 2019"]
[Site "Tuzla"]
[Date "2019.06.14"]
[Round "7.5"]
[White "Buljubasic, Sabahudin"]
[Black "Burovic, Ismet"]
[Result "0-1"]
[ECO "B13"]
[WhiteElo "2374"]
[BlackElo "2337"]
[Annotator "ChessBase"]
[PlyCount "64"]
[EventDate "2019.06.08"]
[EventType "team-tourn"]
[EventCountry "BIH"]
[SourceTitle "playchess.com"]
[Source "ChessBase"]
[SourceQuality "1"]
[TimeControl "40/5400+30:900+30"]

1. e4 {[%emt 0:00:00]} c6 {[%emt 0:00:00]} 2. d4 {[%emt 0:00:09]} d5 {[%emt 0:00:00]} 3. exd5 {[%emt 0:00:13]} cxd5 {[%emt 0:00:09]} 4. c4 {[%emt 0:00:07]} Nf6 {[%emt 0:00:11]} 5. Nc3 {[%emt 0:00:17]} Nc6 {[%emt 0:03:39]} 6. Bg5 {[%emt 0:01:28]} Be6 {[%emt 0:00:30]} 7. Be2 {[%emt 0:10:41]} Qa5 {[%emt 0:00:47]} 8. c5 {[%emt 0:13:57]} Ne4 {[%emt 0:01:19]} 9. Bd2 {[%emt 0:00:40]} Nxd2 {[%emt 0:00:27]} 10. Qxd2 {[%emt 0:00:02]} g6 {[%emt 0:00:25]} 11. Nf3 {[%emt 0:02:48]} Bg7 {[%emt 0:00:29]} 12. h3 {[%emt 0:00:09]} O-O {[%emt 0:04:07]} 13. O-O {[%emt 0:05:01]} Bf5 {[%emt 0:13:21]} 14. Bb5 {[%emt 0:05:23]} Rfd8 {[%emt 0:11:12]} 15. Rfe1 {[%emt 0:02:53]} Qc7 {[%emt 0:04:09]} 16. Bxc6 {[%emt 0:02:28]} bxc6 {[%emt 0:00:17]} 17. b4 {[%emt 0:00:17]} f6 {[%emt 0:06:23]} 18. b5 {[%emt 0:05:08]} e5 {[%emt 0:01:47]} 19. Rac1 {[%emt 0:04:09]} e4 {[%emt 0:09:13]} 20. Nh2 {[%emt 0:00:21]} Be6 {[%emt 0:01:58]} 21. Rb1 {[%emt 0:03:02]} Rab8 {[%emt 0:02:13]} 22. a4 {[%emt 0:02:10]} f5 {[%emt 0:00:46]} 23. f4 {[%emt 0:07:14]} Bd7 {[%emt 0:02:52]} 24. Nf1 {[%emt 0:05:37]} g5 {[%emt 0:10:34]} 25. bxc6 {[%emt 0:02:09]} Bxc6 {[%emt 0:00:16]} 26. Ne3 {[%emt 0:02:05]} Rxb1 {[%emt 0:06:20]} 27. Rxb1 {[%emt 0:00:14]} gxf4 {[%emt 0:00:28]} 28. Nxf5 {[%emt 0:00:41]} Rf8 {[%emt 0:01:16]} 29. Nd6 {[%emt 0:05:25]} Qe7 {[%emt 0:01:40]} 30. Rb4 {[%emt 0:03:00]} f3 {[%emt 0:06:36]} 31. gxf3 {[%emt 0:02:07]} exf3 {[%emt 0:00:07]} 32. Rb1 {[%emt 0:12:29]} Qh4 {[%emt 0:02:46]} 0-1

[Event "BIH-chT Premier League 2019"]
[Site "Tuzla"]
[Date "2019.06.14"]
[Round "7.5"]
[White "Muratovic, Enver"]
[Black "Savanovic, Aleksandar"]
[Result "1/2-1/2"]
[ECO "C87"]
[WhiteElo "2230"]
[BlackElo "2416"]
[Annotator "NA"]
[PlyCount "52"]
[EventDate "2019.06.08"]
[EventType "team-tourn"]
[EventCountry "BIH"]
[SourceTitle "playchess.com"]
[Source "ChessBase"]
[SourceQuality "1"]
[TimeControl "40/5400+30:900+30"]

1. e4 {[%emt 1:30:30]} e5 {[%emt 1:30:30]} 2. Nf3 {[%emt 0:00:30]} Nc6 {[%emt 0:00:30]} 3. Bb5 {[%emt 0:00:30]} a6 {[%emt 0:00:30]} 4. Ba4 {[%emt 0:00:30]} Nf6 {[%emt 0:00:30]} 5. O-O {[%emt 0:00:30]} Be7 {[%emt 0:00:30]} 6. Re1 {[%emt 0:00:30]} d6 {[%emt 0:00:30]} 7. c3 {[%emt 0:00:30]} Bg4 {[%emt 0:00:30]} 8. h3 {[%emt 0:00:30]} Bh5 {[%emt 0:00:30]} 9. Bxc6+ {[%emt 0:00:30]} bxc6 {[%emt 0:00:30]} 10. d4 {[%emt 0:00:30]} exd4 {[%emt 0:00:30]} 11. cxd4 {[%emt 0:00:30]} O-O {[%emt 0:00:30]} 12. Nc3 {[%emt 0:00:30]} d5 {[%emt 0:00:30]} 13. e5 {[%emt 0:00:30]} Ne4 {[%emt 0:00:30]} 14. Nxe4 {[%emt 0:00:30]} dxe4 {[%emt 0:00:30]} 15. Rxe4 {[%emt 0:00:30]} Qd5 {[%emt 0:00:30]} 16. Re1 {[%emt 0:00:30]} Bb4 {[%emt 0:00:30]} 17. Re3 {[%emt 0:00:30]} c5 {[%emt 0:00:30]} 18. a3 {[%emt 0:00:30]} Ba5 {[%emt 0:00:30]} 19. b4 {[%emt 0:00:30]} cxb4 {[%emt 0:00:30]} 20. axb4 {[%emt 0:00:30]} Bxb4 {[%emt 0:00:30]} 21. Ba3 {[%emt 0:00:30]} Bxa3 {[%emt 0:00:30]} 22. Rexa3 {[%emt 0:00:30]} Bxf3 {[%emt 0:00:30]} 23. Rxf3 {[%emt 0:00:30]} c5 {[%emt 0:00:30]} 24. dxc5 {[%emt 0:00:30]} Qxc5 {[%emt 0:00:30]} 25. Rfa3 {[%emt 0:00:30]} Qxe5 {[%emt 0:00:30]} 26. Rxa6 {[%emt 0:00:30]} Rxa6 {[%emt 0:00:30]} 1/2-1/2